fUSD/lending_fUSD_20250309
["ID","MTS","AMOUNT","RATE_DAILY","PERIOD"]
[355710056,1741494639972,-500.0,9.984e-05,2]
[355710058,1741494639982,-1322.42,9.984e-05,2]
[355710060,1741494639992,-509.23056199,9.984e-05,2]
[355710062,1741494640002,-500.0,9.984e-05,2]
[355710064,1741494640011,-770.93,9.984e-05,2]
[355710067,1741494640021,-500.0,9.984e-05,2]
[355710069,1741494640031,-654.19,9.984e-05,2]
[355710071,1741494640040,-531.39954966,9.984e-05,2]
[355710073,1741494640050,-1847.78,9.984e-05,2]
[355710074,1741494640059,-500.0,9.984e-05,2]
[355710076,1741494640069,-500.0,9.984e-05,2]
[355710078,1741494640079,-623.38,9.984e-05,2]
[355710080,1741494640088,-500.0,9.984e-05,2]
[355710083,1741494640098,-2690.61,9.984e-05,2]
[355710085,1741494640108,-500.0,9.984e-05,2]
[355710087,1741494640118,-507.26568437,9.984e-05,2]
[355710089,1741494640128,-598.47,9.984e-05,2]
[355710091,1741494640138,-500.0,9.984e-05,2]
[355710093,1741494640148,-500.0,9.984e-05,2]
[355710095,1741494640157,-500.0,9.984e-05,2]
[355710097,1741494640167,-500.0,9.984e-05,2]
[355710099,1741494640177,-503.91188698,9.984e-05,2]
[355710101,1741494640187,-500.0,9.984e-05,2]
[355710103,1741494640198,-500.0,9.984e-05,2]
[355710104,1741494640208,-797.19,9.984e-05,2]
[355710107,1741494640218,-800.04,9.984e-05,2]
[355710109,1741494640227,-503.04379229,9.984e-05,2]
[355710110,1741494640238,-500.0,9.984e-05,2]
[355710111,1741494640253,-1206.12,9.984e-05,2]
[355710112,1741494640265,-1951.73,9.984e-05,2]
[355710113,1741494640274,-500.0,9.984e-05,2]
[355710115,1741494640284,-500.0,9.984e-05,2]
[355710117,1741494640294,-591.48654669,9.984e-05,2]
[355710119,1741494640304,-500.0,9.984e-05,2]
[355710121,1741494640313,-603.98,9.984e-05,2]
[355710123,1741494640328,-500.0,9.984e-05,2]
[355710125,1741494640337,-500.0,9.984e-05,2]
[355710127,1741494640347,-877.19,9.984e-05,2]
[355710129,1741494640358,-358.2809344,9.984e-05,2]
[355710131,1741494640367,-500.0,9.984e-05,2]
[355710133,1741494640377,-528.47826526,9.984e-05,2]
[355710135,1741494640387,-837.11,9.984e-05,2]
[355710137,1741494640396,-500.0,9.984e-05,2]
[355710139,1741494640406,-500.0,9.984e-05,2]
[355710141,1741494640416,-500.0,9.984e-05,2]
[355710143,1741494640426,-741.74,9.984e-05,2]
[355710145,1741494640436,-1661.94,9.984e-05,2]
[355710147,1741494640446,-480.0,9.984e-05,2]
[355710149,1741494640456,-500.0,9.984e-05,2]
[355710151,1741494640466,-500.0,9.984e-05,2]
[355710153,1741494640476,-607.87206899,9.984e-05,2]
[355710155,1741494640485,-2043.76,9.984e-05,2]
[355710157,1741494640495,-500.0,9.984e-05,2]
[355710159,1741494640505,-500.5402228,9.984e-05,2]
[355710161,1741494640515,-500.0,9.984e-05,2]
[355710163,1741494640525,-599.55,9.984e-05,2]
[355710166,1741494640535,-622.24,9.984e-05,2]
[355710168,1741494640545,-386.6061747,9.984e-05,2]
[355710170,1741494640555,-734.98,9.984e-05,2]
[355710173,1741494640564,-498.25148894,9.984e-05,2]
[355710176,1741494640574,-500.0,9.984e-05,2]
[355710179,1741494640584,-500.0,9.984e-05,2]
[355710182,1741494640594,-500.0,9.984e-05,2]
[355710185,1741494640605,-532.61460479,9.984e-05,2]
[355710188,1741494640615,-521.2,9.984e-05,2]
[355710191,1741494640625,-575.76,9.984e-05,2]
[355710194,1741494640635,-500.0,9.984e-05,2]
[355710197,1741494640644,-904.97,9.984e-05,2]
[355710200,1741494640655,-500.0,9.984e-05,2]
[355710203,1741494640664,-500.0,9.984e-05,2]
[355710206,1741494640674,-600.13,9.984e-05,2]
[355710209,1741494640684,-334.20203046,9.984e-05,2]
[355710212,1741494640694,-3789.73,9.984e-05,2]
[355710216,1741494640705,-610.29,9.984e-05,2]
[355710220,1741494640714,-500.0,9.984e-05,2]
[355710223,1741494640724,-498.57423171,9.984e-05,2]
[355710226,1741494640735,-769.86,9.984e-05,2]
[355710228,1741494640744,-514.08933454,9.984e-05,2]
[355710230,1741494640759,-979.7,9.984e-05,2]
[355710232,1741494640770,-500.0,9.984e-05,2]
[355710234,1741494640780,-263.23851219,9.984e-05,2]
[355710236,1741494640791,-500.0,9.984e-05,2]
[355710238,1741494640801,-500.0,9.984e-05,2]
[355710240,1741494640815,-500.0,9.984e-05,2]
[355710242,1741494640825,-500.0,9.984e-05,2]
[355710245,1741494640835,-868.58,9.984e-05,2]
[355710248,1741494640846,-500.0,9.984e-05,2]
[355710251,1741494640862,-500.0,9.984e-05,2]
[355710254,1741494640872,-1224.35,9.984e-05,2]
[355710257,1741494640882,-1089.34,9.984e-05,2]
[355710260,1741494640893,-612.99,9.984e-05,2]
[355710263,1741494640904,-549.03440451,9.984e-05,2]
[355710266,1741494640914,-500.0,9.984e-05,2]
[355710269,1741494640923,-500.0,9.984e-05,2]
[355710272,1741494640933,-500.0,9.984e-05,2]
[355710275,1741494640944,-500.0,9.984e-05,2]
[355710278,1741494640953,-500.0,9.984e-05,2]
[355710281,1741494640963,-500.0,9.984e-05,2]
[355710284,1741494640974,-886.94,9.984e-05,2]
[355710288,1741494640983,-500.0,9.984e-05,2]
[355710291,1741494640993,-500.0,9.984e-05,2]
[355710293,1741494641002,-605.58,9.984e-05,2]
[355710296,1741494641012,-2029.23,9.984e-05,2]
[355710298,1741494641022,-503.04895553,9.984e-05,2]
[355710301,1741494641032,-500.0,9.984e-05,2]
[355710304,1741494641041,-1116.09,9.984e-05,2]
[355710307,1741494641051,-703.17,9.984e-05,2]
[355710310,1741494641061,-503.54962686,9.984e-05,2]
[355710313,1741494641071,-511.95,9.984e-05,2]
[355710316,1741494641081,-500.0,9.984e-05,2]
[355710319,1741494641091,-500.0,9.984e-05,2]
[355710349,1741494641386,-512.50782902,9.984e-05,2]
[355710351,1741494641396,-500.0,9.984e-05,2]
[355710353,1741494641406,-500.0,9.984e-05,2]
[355710355,1741494641416,-2149.03,9.984e-05,2]
[355710357,1741494641426,-500.0,9.984e-05,2]
[355710359,1741494641435,-500.0,9.984e-05,2]
[355710361,1741494641445,-500.63033639,9.984e-05,2]
[355710363,1741494641454,-500.0,9.984e-05,2]
[355710366,1741494641465,-1354.88,9.984e-05,2]
[355710368,1741494641475,-500.0,9.984e-05,2]
[355710370,1741494641484,-503.53804884,9.984e-05,2]
[355710372,1741494641493,-500.0,9.984e-05,2]
[355710374,1741494641503,-902.15,9.984e-05,2]
[355710375,1741494641513,-2271.06,9.984e-05,2]
[355710376,1741494641522,-500.0,9.984e-05,2]
[355710377,1741494641531,-9991.98,9.984e-05,2]
[355710378,1741494641540,-529.44,9.984e-05,2]
[355710379,1741494641550,-1763.84,9.984e-05,2]
[355710380,1741494641559,-508.48909527,9.984e-05,2]
[355710381,1741494641569,-500.0,9.984e-05,2]
[355710382,1741494641579,-500.0,9.984e-05,2]
[355710383,1741494641589,-500.0,9.984e-05,2]
[355710384,1741494641599,-500.0,9.984e-05,2]
[355710385,1741494641608,-586.68,9.984e-05,2]
[355710386,1741494641619,-1035.73,9.984e-05,2]
[355710387,1741494641628,-502.27826208,9.984e-05,2]
[355710388,1741494641637,-500.0,9.984e-05,2]
[355710389,1741494641647,-1276.79,9.984e-05,2]
[355710390,1741494641657,-786.17,9.984e-05,2]
[355710391,1741494641666,-1136.06,9.984e-05,2]
[355710392,1741494641675,-500.0,9.984e-05,2]
[355710393,1741494641685,-500.0,9.984e-05,2]
[355710394,1741494641694,-1632.11,9.984e-05,2]
[355710395,1741494641703,-500.0,9.984e-05,2]
[355710396,1741494641713,-219.94641274,9.984e-05,2]
[355710397,1741494641723,-789.01,9.984e-05,2]
[355710398,1741494641733,-500.94703205,9.984e-05,2]
[355710399,1741494641743,-506.78347939,9.984e-05,2]
[355710400,1741494641752,-2313.29,9.984e-05,2]
[355710401,1741494641762,-587.37,9.984e-05,2]
[355710402,1741494641772,-500.0,9.984e-05,2]
[355710403,1741494641783,-500.0,9.984e-05,2]
[355710404,1741494641793,-500.62979902,9.984e-05,2]
[355710405,1741494641803,-1665.55,9.984e-05,2]
[355710406,1741494641818,-4918.03,9.984e-05,2]
[355710407,1741494641829,-503.25234593,9.984e-05,2]
[355710408,1741494641838,-500.0,9.984e-05,2]
[355710409,1741494641848,-501.8084529,9.984e-05,2]
[355710410,1741494641859,-780.59,9.984e-05,2]
[355710411,1741494641868,-500.0,9.984e-05,2]
[355710412,1741494641878,-1098.64,9.984e-05,2]
[355710413,1741494641889,-501.26136124,9.984e-05,2]
[355710414,1741494641899,-543.65,9.984e-05,2]
[355710415,1741494641908,-500.0,9.984e-05,2]
[355710416,1741494641917,-500.0,9.984e-05,2]
[355710417,1741494641927,-500.0,9.984e-05,2]
[355710418,1741494641936,-500.0,9.984e-05,2]
[355710419,1741494641945,-1964.45,9.984e-05,2]
[355710420,1741494641955,-6639.52,9.984e-05,2]
[355710421,1741494641965,-500.0,9.984e-05,2]
[355710422,1741494641975,-500.0,9.984e-05,2]
[355710423,1741494641985,-500.64885057,9.984e-05,2]
[355710424,1741494641994,-508.27225356,9.984e-05,2]
[355710425,1741494642004,-500.4754733,9.984e-05,2]
[355710426,1741494642013,-501.70348285,9.984e-05,2]
[355710427,1741494642023,-500.0,9.984e-05,2]
[355710428,1741494642033,-500.0,9.984e-05,2]
[355710429,1741494642042,-503.95752653,9.984e-05,2]
[355710430,1741494642052,-500.0,9.984e-05,2]
[355710431,1741494642061,-500.0,9.984e-05,2]
[355710432,1741494642071,-500.0,9.984e-05,2]
[355710433,1741494642080,-501.03371108,9.984e-05,2]
[355710434,1741494642089,-500.0,9.984e-05,2]
[355710435,1741494642099,-895.41,9.984e-05,2]
[355710436,1741494642108,-500.0,9.984e-05,2]
[355710437,1741494642121,-710.16,9.984e-05,2]
[355710438,1741494642140,-500.0,9.984e-05,2]
[355710439,1741494642152,-500.0,9.984e-05,2]
[355710440,1741494642162,-526.1470907,9.984e-05,2]
[355710441,1741494642172,-659.88,9.984e-05,2]
[355710442,1741494642183,-1096.01,9.984e-05,2]
[355710443,1741494642192,-720.61,9.984e-05,2]
[355710444,1741494642201,-1127.68,9.984e-05,2]
[355710445,1741494642211,-504.37983231,9.984e-05,2]
[355710446,1741494642221,-500.0,9.984e-05,2]
[355710447,1741494642231,-500.25758395,9.984e-05,2]
[355710448,1741494642241,-520.33861024,9.984e-05,2]
[355710449,1741494642250,-501.61334878,9.984e-05,2]
[355710450,1741494642259,-512.39500299,9.984e-05,2]
[355710451,1741494642269,-593.59,9.984e-05,2]
[355710452,1741494642278,-500.0,9.984e-05,2]
[355710453,1741494642287,-869.30360953,9.984e-05,2]
[355710454,1741494642297,-296962.89293751,9.985e-05,2]
[355710455,1741494642306,-500.0,9.985e-05,2]
[355710456,1741494642315,-500.0,9.985e-05,2]
[355710457,1741494642325,-500.0,9.985e-05,2]
[355710458,1741494642335,-500.0,9.985e-05,2]
[355710459,1741494642345,-500.0,9.985e-05,2]
[355710460,1741494642355,-500.0,9.985e-05,2]
[355710461,1741494642365,-500.0,9.985e-05,2]
[355710462,1741494642374,-500.0,9.985e-05,2]
[355710463,1741494642384,-500.0,9.985e-05,2]
[355710464,1741494642393,-500.0,9.985e-05,2]
[355710465,1741494642403,-500.0,9.985e-05,2]
[355710466,1741494642412,-500.0,9.985e-05,2]
[355710467,1741494642422,-500.0,9.985e-05,2]
[355710468,1741494642432,-500.0,9.985e-05,2]
[355710469,1741494642441,-500.0,9.985e-05,2]
[355710470,1741494642452,-500.0,9.985e-05,2]
[355710471,1741494642462,-519.01336331,9.985e-05,2]
[355710472,1741494642472,-500.0,9.985e-05,2]
[355710473,1741494642481,-511.97064264,9.985e-05,2]
[355710474,1741494642490,-500.0,9.985e-05,2]
[355710475,1741494642500,-500.0,9.985e-05,2]
[355710476,1741494642509,-500.0,9.985e-05,2]
[355710477,1741494642519,-346.03748076,9.985e-05,2]
[355710478,1741494642528,-505.22635695,9.985e-05,2]
[355710479,1741494642538,-500.0,9.985e-05,2]
[355710480,1741494642548,-516.0489068,9.985e-05,2]
[355710481,1741494642558,-500.0,9.985e-05,2]
[355710482,1741494642568,-500.0,9.985e-05,2]
[355710483,1741494642578,-500.0,9.985e-05,2]
[355710484,1741494642588,-500.0,9.985e-05,2]
[355710485,1741494642597,-500.0,9.985e-05,2]
[355710486,1741494642606,-500.0,9.985e-05,2]
[355710487,1741494642616,-500.0,9.985e-05,2]
[355710488,1741494642626,-500.0,9.985e-05,2]
[355710489,1741494642636,-500.0,9.985e-05,2]
[355710490,1741494642645,-502.55191401,9.985e-05,2]
[355710491,1741494642655,-506.87766789,9.985e-05,2]
[355710492,1741494642664,-500.0,9.985e-05,2]
[355710493,1741494642674,-500.0,9.985e-05,2]
[355710494,1741494642684,-500.0,9.985e-05,2]
[355710495,1741494642694,-500.0,9.985e-05,2]
[355710496,1741494642703,-528.3020069,9.985e-05,2]
[355710497,1741494642714,-500.0,9.985e-05,2]
[355710498,1741494642724,-500.0,9.985e-05,2]
[355710499,1741494642733,-500.0,9.985e-05,2]
[355710500,1741494642743,-500.0,9.985e-05,2]
[355710501,1741494642754,-434.23424132,9.985e-05,2]
[355710502,1741494642764,-500.0,9.985e-05,2]
[355710503,1741494642774,-511.66644857,9.985e-05,2]
[355710504,1741494642784,-500.0,9.985e-05,2]
[355710505,1741494642794,-500.0,9.985e-05,2]
[355710506,1741494642804,-500.0,9.985e-05,2]
[355710507,1741494642819,-500.0,9.985e-05,2]
[355710508,1741494642829,-524.20162272,9.985e-05,2]
[355710509,1741494642839,-500.0,9.985e-05,2]
[355710510,1741494642850,-500.0,9.985e-05,2]
[355710511,1741494642860,-500.0,9.985e-05,2]
[355710512,1741494642869,-500.0,9.985e-05,2]
[355710513,1741494642879,-500.0,9.985e-05,2]
[355710514,1741494642891,-500.0,9.985e-05,2]
[355710515,1741494642901,-500.0,9.985e-05,2]
[355710516,1741494642911,-503.83920481,9.985e-05,2]
[355710517,1741494642920,-500.0,9.985e-05,2]
[355710518,1741494642929,-500.0,9.985e-05,2]
[355710519,1741494642939,-581.65059052,9.985e-05,2]
[355710520,1741494642948,-500.0,9.985e-05,2]
[355710521,1741494642958,-500.0,9.985e-05,2]
[355710522,1741494642967,-319.01284815,9.985e-05,2]
[355710523,1741494642977,-500.0,9.985e-05,2]
[355710524,1741494642986,-500.0,9.985e-05,2]
[355710525,1741494642995,-349.21290972,9.985e-05,2]
[355710526,1741494643005,-500.0,9.985e-05,2]
[355710527,1741494643014,-500.0,9.985e-05,2]
[355710528,1741494643023,-500.0,9.985e-05,2]
[355710530,1741494643032,-500.0,9.985e-05,2]
[355710531,1741494643041,-500.0,9.985e-05,2]
[355710532,1741494643050,-500.0,9.985e-05,2]
[355710533,1741494643059,-511.83961616,9.985e-05,2]
[355710534,1741494643069,-500.0,9.985e-05,2]
[355710535,1741494643078,-500.0,9.985e-05,2]
[355710536,1741494643087,-500.0,9.985e-05,2]
[355710537,1741494643096,-500.0,9.985e-05,2]
[355710538,1741494643106,-500.0,9.985e-05,2]
[355710539,1741494643115,-506.52053583,9.985e-05,2]
[355710540,1741494643125,-500.0,9.985e-05,2]
[355710542,1741494643134,-521.89406092,9.985e-05,2]
[355710543,1741494643144,-515.5266235,9.985e-05,2]
[355710544,1741494643154,-500.0,9.985e-05,2]
[355710545,1741494643163,-500.0,9.985e-05,2]
[355710546,1741494643173,-506.16022953,9.985e-05,2]
[355710547,1741494643182,-500.0,9.985e-05,2]
[355710548,1741494643192,-500.0,9.985e-05,2]
[355710549,1741494643202,-500.0,9.985e-05,2]
[355710550,1741494643211,-500.0,9.985e-05,2]
[355710551,1741494643220,-500.0,9.985e-05,2]
[355710552,1741494643229,-500.0,9.985e-05,2]
[355710553,1741494643239,-500.0,9.985e-05,2]
[355710554,1741494643248,-500.0,9.985e-05,2]
[355710555,1741494643257,-500.0,9.985e-05,2]
[355710556,1741494643266,-500.0,9.985e-05,2]
[355710557,1741494643275,-507.91314078,9.985e-05,2]
[355710558,1741494643285,-500.0,9.985e-05,2]
[355710559,1741494643294,-500.0,9.985e-05,2]
[355710560,1741494643303,-500.0,9.985e-05,2]
[355710561,1741494643312,-500.0,9.985e-05,2]
[355710562,1741494643321,-500.0,9.985e-05,2]
[355710563,1741494643330,-500.0,9.985e-05,2]
[355710564,1741494643339,-500.0,9.985e-05,2]
[355710565,1741494643348,-500.0,9.985e-05,2]
[355710566,1741494643357,-201.27596453,9.985e-05,2]
[355710567,1741494643367,-504.62892078,9.985e-05,2]
[355710568,1741494643376,-536.04573223,9.985e-05,2]
[355710569,1741494643385,-500.0,9.985e-05,2]
[355710570,1741494643394,-500.0,9.985e-05,2]
[355710571,1741494643404,-500.0,9.985e-05,2]
[355710572,1741494643413,-500.0,9.985e-05,2]
[355710573,1741494643422,-500.0,9.985e-05,2]
[355710574,1741494643431,-503.46115102,9.985e-05,2]
[355710575,1741494643441,-500.0,9.985e-05,2]
[355710576,1741494643450,-500.0,9.985e-05,2]
[355710577,1741494643460,-500.0,9.985e-05,2]
[355710578,1741494643470,-500.0,9.985e-05,2]
[355710579,1741494643479,-500.0,9.985e-05,2]
[355710580,1741494643488,-500.0,9.985e-05,2]
[355710581,1741494643497,-500.0,9.985e-05,2]
[355710582,1741494643506,-500.0,9.985e-05,2]
[355710583,1741494643516,-500.0,9.985e-05,2]
[355710584,1741494643525,-515.12222088,9.985e-05,2]
[355710586,1741494643535,-500.0,9.985e-05,2]
[355710588,1741494643544,-508.10395551,9.985e-05,2]
[355710590,1741494643554,-500.0,9.985e-05,2]
[355710592,1741494643563,-500.0,9.985e-05,2]
[355710593,1741494643572,-508.35614232,9.985e-05,2]
[355710594,1741494643581,-520.88277574,9.985e-05,2]
[355710595,1741494643590,-502.40163162,9.985e-05,2]
[355710596,1741494643599,-500.0,9.985e-05,2]
[355710597,1741494643608,-509.84114422,9.985e-05,2]
[355710598,1741494643617,-500.0,9.985e-05,2]
[355710599,1741494643627,-504.25211704,9.985e-05,2]
[355710600,1741494643636,-504.105464,9.985e-05,2]
[355710601,1741494643645,-500.0,9.985e-05,2]
[355710602,1741494643654,-515.69510332,9.985e-05,2]
[355710603,1741494643663,-500.0,9.985e-05,2]
[355710604,1741494643672,-500.0,9.985e-05,2]
[355710605,1741494643681,-507.32452749,9.985e-05,2]
[355710606,1741494643690,-500.0,9.985e-05,2]
[355710607,1741494643699,-500.0,9.985e-05,2]
[355710608,1741494643709,-506.55300115,9.985e-05,2]
[355710609,1741494643718,-500.0,9.985e-05,2]
[355710610,1741494643727,-503.49502449,9.985e-05,2]
[355710611,1741494643736,-500.0,9.985e-05,2]
[355710612,1741494643745,-504.86710005,9.985e-05,2]
[355710613,1741494643754,-500.0,9.985e-05,2]
[355710614,1741494643763,-500.0,9.985e-05,2]
[355710615,1741494643772,-500.0,9.985e-05,2]
[355710616,1741494643781,-500.0,9.985e-05,2]
[355710617,1741494643790,-500.0,9.985e-05,2]
[355710618,1741494643800,-503.18387306,9.985e-05,2]
[355710619,1741494643811,-500.0,9.985e-05,2]
[355710620,1741494643825,-500.0,9.985e-05,2]
[355710621,1741494643834,-500.0,9.985e-05,2]
[355710622,1741494643843,-501.68334038,9.985e-05,2]
[355710623,1741494643852,-517.07825087,9.985e-05,2]
[355710624,1741494643861,-506.06486407,9.985e-05,2]
[355710625,1741494643870,-500.0,9.985e-05,2]
[355710626,1741494643879,-500.0,9.985e-05,2]
[355710627,1741494643888,-500.0,9.985e-05,2]
[355710628,1741494643898,-513.88883945,9.985e-05,2]
[355710629,1741494643908,-375.73327706,9.985e-05,2]
[355710630,1741494643917,-500.0,9.985e-05,2]
[355710631,1741494643926,-500.0,9.985e-05,2]
[355710632,1741494643936,-500.0,9.985e-05,2]
[355710633,1741494643945,-500.0,9.985e-05,2]
[355710634,1741494643955,-500.0,9.985e-05,2]
[355710635,1741494643964,-500.0,9.985e-05,2]
[355710636,1741494643974,-500.0,9.985e-05,2]
[355710637,1741494643983,-500.0,9.985e-05,2]
[355710638,1741494643993,-500.0,9.985e-05,2]
[355710639,1741494644003,-500.0,9.985e-05,2]
[355710640,1741494644012,-500.0,9.985e-05,2]
[355710641,1741494644022,-507.2378423,9.985e-05,2]
[355710642,1741494644031,-500.0,9.985e-05,2]
[355710643,1741494644041,-511.01149869,9.985e-05,2]
[355710644,1741494644052,-516.04238001,9.985e-05,2]
[355710645,1741494644062,-507.8820126,9.985e-05,2]
[355710646,1741494644072,-500.0,9.985e-05,2]
[355710647,1741494644081,-500.0,9.985e-05,2]
[355710648,1741494644091,-505.04155894,9.985e-05,2]
[355710649,1741494644100,-151.0,9.985e-05,2]
[355710650,1741494644110,-500.0,9.985e-05,2]
[355710651,1741494644119,-517.61658607,9.985e-05,2]
[355710652,1741494644129,-500.0,9.985e-05,2]
[355710653,1741494644139,-503.49146089,9.985e-05,2]
[355710654,1741494644148,-500.0,9.985e-05,2]
[355710655,1741494644157,-500.0,9.985e-05,2]
[355710656,1741494644166,-500.0,9.985e-05,2]
[355710657,1741494644175,-503.64585455,9.985e-05,2]
[355710658,1741494644186,-500.0,9.985e-05,2]
[355710659,1741494644195,-504.5196669,9.985e-05,2]
[355710660,1741494644205,-505.20074296,9.985e-05,2]
[355710661,1741494644215,-500.0,9.985e-05,2]
[355710662,1741494644224,-500.0,9.985e-05,2]
[355710663,1741494644233,-151.0,9.985e-05,2]
[355710664,1741494644242,-506.03018142,9.985e-05,2]
[355710665,1741494644252,-500.0,9.985e-05,2]
[355710666,1741494644262,-151.0,9.985e-05,2]
[355710667,1741494644271,-500.0,9.985e-05,2]
[355710668,1741494644280,-503.02536012,9.985e-05,2]
[355710669,1741494644290,-506.89791061,9.985e-05,2]
[355710670,1741494644299,-502.24972517,9.985e-05,2]
[355710671,1741494644310,-504.93723165,9.985e-05,2]
[355710672,1741494644319,-503.27630629,9.985e-05,2]
[355710673,1741494644329,-500.0,9.985e-05,2]
[355710674,1741494644339,-500.0,9.985e-05,2]
[355710675,1741494644349,-500.0,9.985e-05,2]
[355710676,1741494644359,-508.61766896,9.985e-05,2]
[355710677,1741494644368,-510.98287511,9.985e-05,2]
[355710678,1741494644377,-443.20044569,9.985e-05,2]
[355710679,1741494644387,-506.53972984,9.985e-05,2]
[355710680,1741494644396,-500.0,9.985e-05,2]
[355710681,1741494644406,-500.0,9.985e-05,2]
[355710682,1741494644415,-502.03445154,9.985e-05,2]
[355710683,1741494644425,-507.32524684,9.985e-05,2]
[355710684,1741494644434,-503.47820353,9.985e-05,2]
[355710685,1741494644444,-507.51923668,9.985e-05,2]
[355710686,1741494644453,-509.09314236,9.985e-05,2]
[355710687,1741494644463,-500.0,9.985e-05,2]
[355710688,1741494644477,-507.23055396,9.985e-05,2]
[355710689,1741494644492,-480.0,9.985e-05,2]
[355710690,1741494644502,-482.20325284,9.985e-05,2]
[355710691,1741494644512,-500.0,9.985e-05,2]
[355710692,1741494644521,-507.13983184,9.985e-05,2]
[355710693,1741494644531,-460.0,9.985e-05,2]
[355710694,1741494644540,-503.72522425,9.985e-05,2]
[355710695,1741494644549,-520.15536082,9.985e-05,2]
[355710696,1741494644558,-500.0,9.985e-05,2]
[355710697,1741494644568,-500.0,9.985e-05,2]
[355710698,1741494644578,-500.0,9.985e-05,2]
[355710699,1741494644587,-500.0,9.985e-05,2]
[355710700,1741494644597,-500.0,9.985e-05,2]
[355710701,1741494644606,-500.0,9.985e-05,2]
[355710702,1741494644615,-516.48689002,9.985e-05,2]
[355710703,1741494644625,-500.0,9.985e-05,2]
[355710704,1741494644634,-508.25525965,9.985e-05,2]
[355710705,1741494644644,-504.43442396,9.985e-05,2]
[355710706,1741494644653,-501.6282795,9.985e-05,2]
[355710707,1741494644663,-505.54917919,9.985e-05,2]
[355710708,1741494644672,-510.12269574,9.985e-05,2]
[355710709,1741494644682,-504.30122593,9.985e-05,2]
[355710710,1741494644691,-507.13392856,9.985e-05,2]
[355710711,1741494644701,-513.67872533,9.985e-05,2]
[355710712,1741494644710,-500.0,9.985e-05,2]
[355710713,1741494644720,-502.55668553,9.985e-05,2]
[355710714,1741494644729,-500.0,9.985e-05,2]
[355710715,1741494644739,-502.7767815,9.985e-05,2]
[355710716,1741494644748,-504.97153197,9.985e-05,2]
[355710717,1741494644758,-518.91882082,9.985e-05,2]
[355710718,1741494644767,-517.26924165,9.985e-05,2]
[355710719,1741494644777,-509.19991573,9.985e-05,2]
[355710720,1741494644786,-508.54008372,9.985e-05,2]
[355710721,1741494644796,-500.0,9.985e-05,2]
[355710722,1741494644806,-500.0,9.985e-05,2]
[355710723,1741494644819,-509.83797906,9.985e-05,2]
[355710724,1741494644828,-428.1635817,9.985e-05,2]
[355710725,1741494644838,-437.35700558,9.985e-05,2]
[355710726,1741494644847,-506.50953323,9.985e-05,2]
[355710727,1741494644858,-513.02707506,9.985e-05,2]
[355710728,1741494644867,-505.18883386,9.985e-05,2]
[355710729,1741494644876,-500.0,9.985e-05,2]
[355710730,1741494644886,-500.0,9.985e-05,2]
[355710731,1741494644895,-487.14430168,9.985e-05,2]
[355710732,1741494644906,-500.0,9.985e-05,2]
[355710733,1741494644915,-505.09823912,9.985e-05,2]
[355710734,1741494644924,-500.0,9.985e-05,2]
[355710735,1741494644934,-500.0,9.985e-05,2]
[355710736,1741494644943,-500.0,9.985e-05,2]
[355710737,1741494644952,-500.0,9.985e-05,2]
[355710738,1741494644961,-538.95317513,9.985e-05,2]
[355710739,1741494644971,-500.0,9.985e-05,2]
[355710740,1741494644980,-503.83949905,9.985e-05,2]
[355710741,1741494644990,-513.62191036,9.985e-05,2]
[355710742,1741494644999,-519.09917204,9.985e-05,2]
[355710743,1741494645008,-500.0,9.985e-05,2]
[355710744,1741494645018,-506.5516953,9.985e-05,2]
[355710745,1741494645028,-500.0,9.985e-05,2]
[355710746,1741494645037,-500.0,9.985e-05,2]
[355710747,1741494645047,-503.12547385,9.985e-05,2]
[355710748,1741494645056,-503.7779128,9.985e-05,2]
[355710749,1741494645065,-523.42678722,9.985e-05,2]
[355710750,1741494645074,-500.0,9.985e-05,2]
[355710751,1741494645083,-112.41046719,9.985e-05,2]
[355710752,1741494645591,-387.58953281,9.985e-05,2]
[355710753,1741494645601,-500.0,9.985e-05,2]
[355710754,1741494645610,-505.04823514,9.985e-05,2]
[355710755,1741494645619,-505.51839387,9.985e-05,2]
[355710756,1741494645628,-363.66834106,9.985e-05,2]